Cogmind - Beta 16 @@@ ROGUE MODE // 2025.12.19 @ 12:52:11 Player: Plexion Result: Destroyed by YI-UF0 with YI-UF0's Doublenader Performance ------------- Evolutions (0) 0 Regions Visited (2) 400 Robots Destroyed (18) 90 Value Destroyed (404) 404 Prototype IDs (0) 0 Alien Tech Used (0) 0 Bonus (64) 64 TOTAL SCORE: 958 Bonus ------- Follower Combat Kills 106 Friendly Fire -42 Cogmind --------- Core Integrity 0/250 Matter 295/300 Energy 56/100 System Corruption 0% Temperature Cool (5) Movement Core (400) Ox7 Location -10/Mines Parts ------- > --- POWER (1) -------- (None) > --- PROPULSION (2) --- (None) > --- UTILITY (2) ------ Large Storage Unit > --- WEAPON (2) ------- Beam Rifle > --- INVENTORY (15) --- Aluminum Leg Aluminum Leg Compact Wheel Compact Wheel Seismic Detector Beam Rifle EMP Blaster EMP Blaster Grenade Launcher Mining Laser Mining Claw Peak State ------------ > --- POWER ------------ Ion Engine > --- PROPULSION ------- Light Treads Light Treads > --- UTILITY ---------- Improved Heat Sink Large Storage Unit > --- WEAPON ----------- Beam Rifle Beam Rifle > --- INVENTORY -------- Light Treads Compact Wheel Compact Wheel Seismic Detector Beam Rifle Light Assault Rifle Light Assault Rifle Light Assault Rifle Mining Laser [Rating: 12] Favorites ----------- Power Ion Engine Engine Ion Engine Propulsion Light Treads Treads Light Treads Utility Large Storage Unit Device Seismic Detector Storage Large Storage Unit Weapon Beam Rifle Energy Gun Beam Rifle Ballistic Gun Light Assault Rifle Build | -11 -10 -10 ------- Run | Yrd Mat Min Slots Evolved . | . . . Power . | . . . Propulsion . | . . . Utility . | . . . Weapon . | . . . Parts Attached 17 | 7 8 2 Power 2 | 1 1 . Engine 2 | 1 1 . Core . | . . . Reactor . | . . . Propulsion 4 | 2 1 1 Treads 4 | 2 1 1 Leg . | . . . Wheel . | . . . Hover . | . . . Flight . | . . . Utility 6 | 2 4 . Device 3 | 1 2 . Storage 3 | 1 2 . Processor . | . . . Hackware . | . . . Protection . | . . . Artifact . | . . . Weapon 5 | 2 2 1 Energy Gun 3 | . 2 1 Energy Cannon . | . . . Ballistic Gun 2 | 2 . . Ballistic Cannon . | . . . Launcher . | . . . Special Weapon . | . . . Impact Weapon . | . . . Slashing Weapon . | . . . Piercing Weapon . | . . . Special Melee Weapon . | . . . Unidentified Prototypes . | . . . Parts Lost 9 | . 2 7 Power 2 | . 1 1 Propulsion 4 | . 1 3 Utility 1 | . . 1 Weapon 2 | . . 2 Highest Loss Streak 6 | . 1 6 To Critical Strikes . | . . . Average Backups 8 | 2 6 10 Power . | . . . Propulsion 3 | 1 2 3 Utility . | . . 1 Weapon 3 | . 2 6 Tool/Special . | . . . Unused Backups 12 | . 2 10 Power . | . . . Propulsion 4 | . . 4 Utility . | . . . Weapon 8 | . 2 6 Tool/Special . | . . . Average Slot Usage (%) 98 | . 97 99 Engine 13 | . 14 13 Treads 27 | . 27 27 Device 13 | . 12 14 Storage 14 | . 14 14 Energy Gun 15 | . 4 28 Ballistic Gun 12 | . 22 . Peak Build Rating 12 | 7 12 12 Average Rating 8 | 5 8 10 On Entrance 6 | . 7 12 Avg Prop Armor Cover (%) . | . . . Naked Turns . | . . . Heaviest Build 32 | 11 32 32 Greatest Support 40 | 40 40 40 Greatest Overweight (x) 4 | . 4 . Average Overweight (x) . | . . . Largest Inventory Capacity 15 | 8 15 15 Average Capacity 13 | 7 13 15 Most Carried 12 | 4 10 12 Average Carried 8 | 2 6 10 Final Capacity 15 | 8 15 15 Final Carried 11 | 4 9 11 Class Distribution -------------------- 100% | Mutant Dominant Class ---------------- Mutant | -10/Materials Mutant | -10/Mines Resources | -11 -10 -10 ----------- Run | Yrd Mat Min Matter Collected 550 | 272 248 30 Remotely . | . . . Salvage Created 625 | 62 516 47 Parts 36 | 6 29 1 Haulers Intercepted 2 | . 2 . Recyclers Shooed 1 | . 1 . Parts Field Recycled . | . . . Retrieved Matter . | . . . Parts Self-Destructed . | . . . Prevented . | . . . Parts Restored . | . . . Kills | -11 -10 -10 ------- Run | Yrd Mat Min Combat Hostiles Destroyed 11 | . 10 1 Guns 11 | . 10 1 Classes Destroyed 8 | 2 6 . Worker 1 | . 1 . Tunneler 1 | 1 . . Hauler 2 | . 2 . Recycler 1 | 1 . . Operator 1 | . 1 . Watcher 1 | . 1 . Swarmer 3 | . 3 . Grunt 8 | . 7 1 Best Kill Streak 4 | 2 4 1 Combat Bots Only 3 | . 3 1 Max Kills in Single Turn 2 | 1 2 1 Gunslinging . | . . . Exploded . | . . . Melee . | . . . Uniques/NPCs Destroyed . | . . . Combat | -11 -10 -10 -------- Run | Yrd Mat Min Hostile Shots Fired 97 | . 66 31 Missed 26 | . 17 9 Hits 71 | . 49 22 Projectile 71 | . 49 22 AOE 21 | . . 21 Damage Taken 1319 | . 610 709 Core 254 | . 54 200 Absorbed by Shields . | . . . Core Remaining (%) 100 | 100 . . Volleys Fired 72 | 3 58 11 Largest 2 | 2 2 2 Hottest 112 | 40 112 112 Shots Fired 143 | 6 115 22 Gun 143 | 6 115 22 Cannon . | . . . Launcher . | . . . Special . | . . . Kinetic 109 | 6 103 . Thermal 34 | . 12 22 Explosive . | . . . Electromagnetic . | . . . Robot Hit Streak 10 | 4 9 10 Robot Miss Streak 4 | 1 4 3 Penetration Max . | . . . Secondary Targets 2 | . 2 . Max Gunslinging Chain 1 | . 1 . Shots Hit Robots 97 | 4 80 13 Core Hits 43 | 5 32 6 Critical Kills . | . . . Critical Parts Destroyed . | . . . Critical Strikes 1 | . . 1 Burn 1 | . . 1 Melee Attacks . | . . . Impact . | . . . Slashing . | . . . Piercing . | . . . Sneak Attacks . | . . . Combat Hostiles . | . . . Follow-up Attacks . | . . . Damage Inflicted 979 | 51 737 191 Guns 957 | 44 723 190 Cannons . | . . . Explosions . | . . . Melee . | . . . Ramming 22 | 7 14 1 Kinetic 621 | 44 577 . Thermal 336 | . 146 190 Explosive . | . . . Electromagnetic . | . . . Impact . | . . . Slashing . | . . . Piercing . | . . . Highest Corruption . | . . . Average Corruption . | . . . Corruption Purged . | . . . Corruption Blocked . | . . . Overload Shots . | . . . Overflow Damage . | . . . Projectiles . | . . . Explosions . | . . . Melee . | . . . Knockbacks . | . . . Impact . | . . . Kinetic . | . . . Secondary . | . . . Self-Inflicted Damage . | . . . Shots . | . . . Rammed 6 | 3 2 1 Targets Rammed 6 | 3 2 1 Kicked . | . . . Crushed . | . . . Highest Temperature 102 | . 72 102 Average Temperature 32 | . 20 44 Received Heat Transfer 354 | . 315 39 Siege Activations . | . . . Martial Activations . | . . . Shielding Activations . | . . . Robots Disrupted . | . . . Combat Hostiles . | . . . Robots Corrupted . | . . . Combat Hostiles . | . . . Parts Fried . | . . . Impact Corruptions . | . . . Robots Melted . | . . . Combat Hostiles . | . . . Parts Melted . | . . . Heat Transferred 925 | . 370 555 Parts Sabotaged . | . . . Parts Stolen . | . . . Parts Stripped . | . . . Power Chain Reactions . | . . . Alert | -11 -10 -10 ------- Run | Yrd Mat Min Maximum Alert Level . | . . . Low Security (%) 100 | 100 100 100 Level 1 . | . . . Level 2 . | . . . Level 3 . | . . . Level 4 . | . . . Level 5 . | . . . High Security . | . . . Max Security . | . . . Peak Influence 118 | 10 118 85 Initial 33 | . . 33 Average 28 | . 38 21 Influence Increases 523 | 10 325 188 Destroy 0b10 Robot/C 340 | . 200 140 Destroy 0b10 Robot/NC 35 | 10 25 . Destroy Leader 86 | . 56 30 Allied During Kill 18 | . . 18 Successful Hack 14 | . 14 . Lose Combat Pursuer 30 | . 30 . Influence Decreases 523 | 10 239 274 Entered New Map 53 | . . 53 Time Decay 400 | 10 219 171 Lost Part 30 | . 20 10 Lost Ally 40 | . . 40 Squads Dispatched 2 | . 2 . Investigation . | . . . Extermination . | . . . Reinforcement 2 | . 2 . Assault . | . . . Garrison . | . . . Intercept . | . . . Searches Triggered . | . . . Construction Impeded . | . . . Haulers Reinforced . | . . . Active Scanning Responses . | . . . Cargo Convoy Interrupts . | . . . Stealth | -11 -10 -10 --------- Run | Yrd Mat Min Distress Signals 1 | . 1 . Communications Jammed . | . . . Distress Signals . | . . . Times Spotted 28 | . 20 8 Peak Tracking Total 4 | . 3 4 Tactical Retreats 2 | . 2 . Traps | -11 -10 -10 ------- Run | Yrd Mat Min Traps Triggered 1 | . 1 . Indirectly . | . . . Trap Hack Attempts . | . . . Triggered . | . . . Disarmed . | . . . Reprogrammed . | . . . Reused . | . . . Traps Extracted . | . . . Installed . | . . . Triggered . | . . . Machines | -11 -10 -10 ---------- Run | Yrd Mat Min Machines Disabled . | . . . Max in Single Turn . | . . . Machines Repaired . | . . . Machines Dismantled . | . . . Machines Sabotaged . | . . . Overloaded Fab Kills . | . . . Hacking | -11 -10 -10 --------- Run | Yrd Mat Min Machines Accessed 5 | . 5 . Terminals 4 | . 4 . Fabricators . | . . . Repair Stations 1 | . 1 . Recycling Units . | . . . Scanalyzers . | . . . Garrison Access . | . . . Total Hacks 15 | . 15 . Successful 9 | . 9 . Failed 6 | . 6 . Catastrophic . | . . . Database Lockouts . | . . . Manual 11 | . 11 . Terminals 12 | . 12 . Fabricators . | . . . Repair Stations 3 | . 3 . Recycling Units . | . . . Scanalyzers . | . . . Garrison Access . | . . . Terminal Hacks 2 | . 2 . Robot Analysis 2 | . 2 . Fabricator Hacks . | . . . Repair Station Hacks 1 | . 1 . Scan Component 1 | . 1 . Recycling Unit Hacks . | . . . Scanalyzer . | . . . Garrison Access Hacks . | . . . Unauthorized Hacks 6 | . 6 . Terminals 6 | . 6 . Botnet 1 | . 1 . Operators 1 | . 1 . Skim 4 | . 4 . Fabricators . | . . . Repair Stations . | . . . Recycling Units . | . . . Scanalyzers . | . . . Garrison Access . | . . . Data Cores Recovered . | . . . Used . | . . . Hacking Detections 5 | . 5 . Full Trace Events . | . . . Feedback Events . | . . . Feedback Blocked . | . . . Robot Schematics Acquired . | . . . Robots Built . | . . . Authchips . | . . . Time . | . . . Total Robot Build Rating . | . . . Part Schematics Acquired . | . . . Parts Built . | . . . Authchips . | . . . Time . | . . . Total Part Build Rating . | . . . Part Studies Acquired . | . . . Parts Repaired . | . . . Time . | . . . Parts Recycled . | . . . Recycled Matter . | . . . Retrieved Matter . | . . . Retrieved Components . | . . . Parts Scanalyzed . | . . . Part Schematics Acquired . | . . . Parts Damaged . | . . . Bothacking | -11 -10 -10 ------------ Run | Yrd Mat Min Used RIF Installer . | . . . Robots Hacked . | . . . Non-combat . | . . . Combat . | . . . Robot Hacks Applied . | . . . Relay Couplers Released . | . . . Fabnet Peak Effective % . | . . . Robots Rewired . | . . . Allies Hacked . | . . . Hacks Repelled . | . . . Allies | -11 -10 -10 -------- Run | Yrd Mat Min Total Allies 3 | . . 3 Largest Group 3 | . . 3 Highest-Rated Group 40 | . . 40 Highest-Rated Ally 16 | . . 16 Total Orders 1 | . . 1 STAY 1 | . . 1 Ally Attacks 35 | . . 35 Total Damage 341 | . . 341 Kills 6 | . . 6 Allies Corrupted . | . . . Allies Melted . | . . . Intel | -11 -10 -10 ------- Run | Yrd Mat Min Active Infowar (turns) 959 | 24 457 478 Seismic 959 | 24 457 478 Robot Analysis Total 2 | . 2 . Derelict Logs Recovered 1 | . . 1 Drone Launches . | . . . Drone Recoveries . | . . . Exploration | -11 -10 -10 ------------- Run | Yrd Mat Min Turns Passed 1422 | 104 715 603 Spaces Moved 681 | 52 311 318 Core 6 | 5 1 . Treads 675 | 47 310 318 Legs . | . . . Wheels . | . . . Hover . | . . . Flight . | . . . Fastest Speed 50 | 50 160 160 Average Speed 159 | 149 160 160 Slowest Speed 250 | 160 250 160 Overloaded Moves . | . . . Propulsion Burnouts . | . . . Robots Hopped . | . . . Potential Cave-ins . | . . . Cave-ins Triggered . | . . . Exploration Rate (%) 37 | 5 60 46 Regions Visited 2 Branch Regions 1 Pre-discovered Areas 1 | . . 1 Known Exits Taken . | . . . Unknown Exits Taken 2 | 1 1 . Scrap Searched 1 | . . 1 Spaces Dug . | . . . Terrain Destroyed . | . . . Melee . | . . . Projectile . | . . . AOE . | . . . Terrain Rammed . | . . . Walls Destroyed . | . . . Machines Disabled . | . . . Actions | -11 -10 -10 --------- Run | Yrd Mat Min Total 885 | 68 430 387 Wait 72 | . 25 47 Move 680 | 52 310 318 Hop . | . . . Pick Up 17 | 4 9 4 Fast Attach 13 | 7 6 . Attach 4 | . 2 2 Detach 3 | . 3 . Swap 12 | . 8 4 Drop 7 | . 7 . Fire 72 | 3 58 11 Melee . | . . . Ram . | . . . Kick . | . . . Crush 5 | 2 2 1 Escape Stasis . | . . . Rewire . | . . . Trap . | . . . Miscellaneous . | . . . Route ------- -11/Scrapyard -10/Materials (discovered 3 exits: [*Mat] / [*Min x2]) -10/Mines (discovered 2 exits: [*Mat x2]) History --------- Turn | Location | Event 2 | -11/Scrapyard | Met Revision 17 3 | -11/Scrapyard | Discovered new exit (range 16) 105 | -11/Scrapyard | Entered Materials 105 | -10/Materials | Discovered new exit (range 15) 303 | -10/Materials | Build established: Mutant 321 | -10/Materials | Discovered new exit (range 9) 464 | -10/Materials | Discovered new exit (range 8) 820 | -10/Materials | Entered Mines 827 | -10/Mines | Learned location of Storage (-7) 833 | -10/Mines | Assisted by bots powering up and referring to "LRC-V3" 998 | -10/Mines | Discovered new exit (range 12) 1225 | -10/Mines | YI-UF0 nonchalantly dropped a Grenade Launcher on the ground 1329 | -10/Mines | Discovered new exit (range 5) 1412 | -10/Mines | Core integrity fell below 50% 1418 | -10/Mines | Core integrity fell below 20% 1423 | -10/Mines | Destroyed by YI-UF0 with YI-UF0's Doublenader Last Messages --------------- 01237_ YI-UF0 mumbles something. 01329_ EXIT=FOUND 01359_ U-05 Engineer lays Concrete. 01390_ K-01 Serf collects debris. 01391_ U-05 Engineer lays Concrete. 01395_ K-01 Serf collects debris. 01396_ U-05 Engineer lays Concrete. 01401_ YI-UF0: "BOOM TO YOU TOO!" 01401_ U-05 Engineer lays Concrete. 01402_ Lgt. Treads destroyed. 01402_ YI-UF0 suffers critical hit (Burn). 01403_ U-05 Engineer lays Concrete. 01410_ U-05 Engineer builds a Wall. 01412_ YI-UF0 mumbles something. 01414_ U-05 Engineer lays Concrete. 01415_ Ion Engine destroyed. 01417_ Lgt. Treads destroyed. 01419_ YI-UF0 mumbles something. 01421_ Beam Rifle destroyed. 01423_ Imp. Heat Sink destroyed. Map ----- +----------------------------------------------------+ | | | | | | | | | | | | | | | | | | | | | | | | | | | | | | | | | | | ???????????????????????????????????? | | ?????????????????????########??????? | | ????????????####?????# ###????? | | ???????????## ##???# ###??? | | ???????????# ##?## ##?? | | ???????????# ### #?? | | ####????#?## #?? | | ##??## # #??? | | #??# u @ #??? | | #?## #??? | | # #?# #??? | | ## #?# % g #??? | | ?# #?## [ #??? | | ?# #??# # # ##??? | | ?# #### [#??## ### ###???? | | ?# ## ##??# #?#######?????? | | ?# #### #?????????????? | | ?## ## #?????????????? | | ??# ### g #?????????????? | | ??# ##?## k ##????????????? | | ??# #???# #????????????? | | ? #???# ### #????????????? | | ######???# ##?### #????????????? | | ?????????# #????# #????????????? | | ?????????## ##????# #????????????? | | ??????????## #?????# #???????#####? | | ???????????# #?????# ######### #? | | ???????????# #?????# #? | | ???????????# #?????# ######### #? | | ???????????# ???? #???????# < #? | | ???????????###???### #???????## #? | | ??????????????????? ????????# #? | | ??????????????????? ???????? ##? | +----------------------------------------------------+ Best States ------------- Heat Dissipation 39 Energy Generation 10 Energy Capacity 250 Matter Stores 300 Matter Capacity 300 Sight Range 16 Terrain Scan Density 10 Evasion (%) 40 Recoil Reduction 2 Item Schematics ----------------- None Robot Schematics ------------------ None Fabricated ------------ Nothing Repaired ---------- Nothing Studied --------- None Alien Tech Used ----------------- None Achievements -------------- None Challenges ------------ None Game ------ Seed FocalArmorPod Manual? 0 Play Time 00:08:46 Cumulative 926.9 hours Start 2025.12.19 @ 12:45:31 End 2025.12.19 @ 12:52:11 Sessions 1 Manual Loads 0 Difficulty Rogue Special Mode None Game No. 841 Rogue 754 Adventurer 87 Explorer 0 Win Type - Total 61 Types 9/7/32/2/1/1/5/1/1/2 Lore% 97 Gallery% 93 Achievement% 70 Wizard Run 0 Options --------- Layout 0 ASCII 0 Keyboard 1 Movement Numpad Keybinds 0 Fullscreen 2 Font 18/SmallcapsGlow Map View 76x50 Zoom Use 0% Tactical HUD 1 Map Filters NONE Filters NONE Steam 1 RUN: 5c02dcbd-7910-468f-9379-1d339da414f7